bitfinex-derivatives/quotes_SOLF0:USTF0_20250309
["timestamp","ask_amount","ask_price","bid_price","bid_amount"]
[1741542879499,38.46,127.06,126.99,3.7064]
[1741542879706,38.46,127.06,127.0,7.874]
[1741542880205,38.46,127.06,126.99,3.7064]
[1741542880511,7.92636109,127.04,127.02,0.057487]
[1741542880701,0.05376109,127.04,127.02,0.057487]
[1741542881005,0.05376109,127.04,126.98,127.41096229]
[1741542881603,7.8738,127.02,126.98,135.28656229]
[1741542882005,38.46,127.02,126.99,0.04832515]
[1741542882211,0.05793114,127.01,126.97,85.68130472]
[1741542882601,0.05793114,127.01,126.97,93.55730472]
[1741542882906,0.05793114,127.01,126.97,85.68130472]
[1741542883101,0.05793114,127.01,126.97,80.00090472]
[1741542885703,52.22416814,127.0,126.97,80.00090472]
[1741542885905,52.22416814,127.0,126.96,26.93340151]
[1741542886512,0.05351572,126.99,126.97,7.8763]
[1741542887004,0.05696111,126.99,126.97,7.8763]
[1741542887209,0.05696111,126.99,126.96,34.81010151]
[1741542887406,0.05696111,126.99,126.96,26.93340151]
[1741542887711,0.05696111,126.99,126.97,7.876]
[1741542887908,0.05696111,126.99,126.94,38.46]
[1741542888511,0.05696111,126.99,126.98,7.8758]
[1741542888905,0.05696111,126.99,126.94,38.46]
[1741542889206,0.05696111,126.99,126.92,3.6685]
[1741542889406,7.8762,126.98,126.94,7.8779]
[1741542889804,0.05696111,126.99,126.91,95.81963159]
[1741542889805,52.28112925,126.99,126.91,57.35963159]
[1741542890005,52.22416814,126.99,126.91,57.35963159]
[1741542890207,0.05966408,126.96,126.91,57.35963159]
[1741542890509,0.05966408,126.96,126.93,7.8788]
[1741542890709,0.05966408,126.96,126.91,57.35963159]
[1741542891108,7.93716408,126.96,126.91,57.35963159]
[1741542891303,0.05966408,126.96,126.91,57.35963159]
[1741542892310,0.05966408,126.96,126.94,7.8779]
[1741542892614,0.05966408,126.96,126.91,57.35963159]
[1741542893304,0.05966408,126.96,126.91,53.88583159]
[1741542893513,7.15596408,126.96,126.91,53.88583159]
[1741542893817,5.53782754,126.95,126.91,53.88583159]
[1741542894002,197.53782754,126.95,126.91,53.88583159]
[1741542894206,7.8796,126.92,126.91,53.88583159]
[1741542894407,197.53782754,126.95,126.88,32.37323894]
[1741542894408,38.46,126.93,126.88,32.37323894]
[1741542894608,0.05901361,126.93,126.88,32.37323894]
[1741542894910,0.05901361,126.93,126.88,70.83323894]
[1741542895705,5.54228437,126.92,126.9,7.8804]
[1741542895909,5.54228437,126.92,126.88,70.83323894]
[1741542896214,5.54228437,126.92,126.91,7.8802]
[1741542896415,0.05901361,126.93,126.9,52.22416814]
[1741542896816,0.05901361,126.93,126.92,7.8796]
[1741542897517,38.46,126.99,126.9,52.22416814]
[1741542897710,38.46,126.99,126.91,38.46]
[1741542897907,3.4631,127.0,126.92,52.22416814]
[1741542898221,3.7241,127.01,126.92,52.22416814]
[1741542898417,55.71066814,127.04,126.92,52.22416814]
[1741542898717,0.05547972,126.98,126.95,0.05901361]
[1741542898914,46.3329,127.03,126.98,7.8754]
[1741542899114,0.05181059,126.98,126.95,90.73795926]
[1741542899317,7.2073,127.04,126.95,90.68416814]
[1741542899813,15.0799,127.04,126.95,90.68416814]
[1741542900018,7.2073,127.04,126.92,38.46]
[1741542900209,7.8742,127.01,126.92,38.46]
[1741542900406,7.2073,127.04,126.97,0.05340143]
[1741542900916,0.04995566,127.02,126.97,0.05340143]
[1741542901213,0.04995566,127.02,126.97,52.27756957]
[1741542901610,0.04995566,127.02,126.97,56.01056957]
[1741542902710,0.04995566,127.02,126.98,3.7045]
[1741542903315,0.04995566,127.02,127.01,7.874]
[1741542903716,0.04995566,127.02,126.91,190.03704765]
[1741542903912,90.66416814,127.03,126.92,90.52504144]
[1741542904113,192.0,127.02,126.92,90.52504144]
[1741542904513,52.22416814,127.0,126.92,86.93424144]
[1741542904717,230.44,126.99,126.92,86.93424144]
[1741542904919,0.05400985,126.98,126.95,0.06023809]
[1741542905409,38.44,126.97,126.95,0.06023809]
[1741542906721,38.44,126.97,126.92,86.93424144]
[1741542906722,7.8783,126.95,126.92,86.93424144]
[1741542906916,90.66416814,126.97,126.88,7.1405]
[1741542907121,38.44,126.97,126.88,7.1405]
[1741542907917,0.05164383,126.94,126.88,7.1405]
[1741542908117,0.05164383,126.94,126.93,7.8789]
[1741542908621,4.383e-05,126.94,126.93,7.8789]
[1741542908822,5.53294779,126.94,126.93,7.8789]
[1741542909512,4.383e-05,126.94,126.9,52.22416814]
[1741542909713,4.383e-05,126.94,126.91,0.0526687]
[1741542910724,4.383e-05,126.94,126.93,7.8789]
[1741542911324,5.53538317,126.94,126.91,0.0526687]
[1741542912022,43.97533934,126.93,126.91,0.0526687]
[1741542912415,51.85463934,126.93,126.91,0.0526687]
[1741542912620,5.53533934,126.92,126.91,0.0526687]
[1741542913015,5.53533934,126.92,126.91,7.9328687]
[1741542913427,4.383e-05,126.94,126.91,38.4926687]
[1741542913724,4.383e-05,126.94,126.93,7.8789]
[1741542915724,4.383e-05,126.94,126.91,0.0526687]
[1741542916021,3.62964383,126.94,126.91,0.0526687]
[1741542916214,4.383e-05,126.94,126.91,0.0526687]
[1741542917225,4.383e-05,126.94,126.93,7.8789]
[1741542918523,4.383e-05,126.94,126.91,0.0526687]
[1741542919731,4.383e-05,126.94,126.93,7.8789]
[1741542919925,4.383e-05,126.94,126.91,0.0526687]
[1741542920423,4.383e-05,126.94,126.93,32.16987014]
[1741542920625,4.383e-05,126.94,126.92,7.1263]
[1741542920830,4.383e-05,126.94,126.93,7.8789]
[1741542921229,4.383e-05,126.94,126.93,11.8189]
[1741542922525,4.383e-05,126.94,126.93,7.8789]
[1741542924130,4.383e-05,126.94,126.91,0.0526687]
[1741542924628,7.8796,126.92,126.91,0.0526687]
[1741542924827,4.383e-05,126.94,126.91,0.0526687]
[1741542924828,6.96724383,126.94,126.91,0.0526687]
[1741542925226,3.57494383,126.94,126.91,0.0526687]
[1741542925426,4.383e-05,126.94,126.91,0.0526687]
[1741542926429,4.383e-05,126.94,126.93,7.8789]
[1741542926729,4.383e-05,126.94,126.91,0.0526687]
[1741542926930,4.383e-05,126.94,126.91,7.9326687]
[1741542927229,38.42004383,126.94,126.91,0.0526687]
[1741542928034,7.8818,126.89,126.85,7.8837]
[1741542928438,38.42,126.9,126.84,259.94]
[1741542928643,38.42,126.9,126.82,14.32711441]
[1741542929137,7.8839,126.85,126.82,10.91951441]
[1741542929340,38.42,126.86,126.82,5.31611441]
[1741542929545,38.42,126.86,126.81,32.37323894]
[1741542929546,0.05240369,126.87,126.81,32.37323894]
[1741542930041,0.05240369,126.87,126.84,7.8843]
[1741542930242,0.05240369,126.87,126.81,32.37323894]
[1741542930845,0.05240369,126.87,126.78,81.33973894]
[1741542931039,0.05240369,126.87,126.78,32.37323894]
[1741542931242,94.3987345,126.88,126.78,32.37323894]
[1741542931547,0.05471691,126.84,126.78,32.37323894]
[1741542931736,38.42,126.83,126.78,32.37323894]
[1741542931940,52.3838345,126.82,126.77,86.93424144]
[1741542932140,38.42,126.83,126.77,86.93424144]
[1741542932539,0.05647637,126.81,126.77,86.93424144]
[1741542932738,0.05647637,126.81,126.77,94.82264144]
[1741542932937,0.05647637,126.81,126.77,86.93424144]
[1741542933249,38.44,126.89,126.78,0.05051185]
[1741542933443,38.44,126.89,126.78,52.43434635]
[1741542933643,38.44,126.89,126.78,59.3384345]
[1741542933948,52.3838345,126.87,126.78,6.9546]
[1741542934555,0.05240888,126.84,126.81,0.0526369]
[1741542935847,0.05240888,126.84,126.83,7.8852]
[1741542936738,8.88e-06,126.84,126.83,7.8852]
[1741542937249,8.88e-06,126.84,126.83,11.8252]
[1741542937650,230.44,126.94,126.83,3.94]
[1741542937850,38.44,126.94,126.86,52.3838345]
[1741542938046,52.3838345,126.96,126.87,3.6656]
[1741542938249,38.44,126.97,126.88,38.44]
[1741542938446,38.44,126.97,126.88,42.0537]
[1741542938642,7.8769,126.97,126.88,42.0537]
[1741542939051,0.05200343,126.94,126.91,0.05201893]
[1741542940747,7.93040343,126.94,126.91,0.05201893]
[1741542941048,0.05200343,126.94,126.91,0.05201893]
[1741542942950,0.05200343,126.94,126.91,7.93161893]
[1741542943151,0.05200343,126.94,126.91,0.05201893]
[1741542943550,0.05200343,126.94,126.91,3.43001893]
[1741542943750,3.43e-06,126.94,126.91,3.43001893]
[1741542943950,3.43e-06,126.94,126.92,3.3584]
[1741542944150,3.43e-06,126.94,126.93,46.2989]
[1741542944657,3.43e-06,126.94,126.93,102.6227345]
[1741542944951,38.42,127.05,126.93,94.7438345]
[1741542945157,7.8739,127.02,126.93,90.8038345]
[1741542945346,52.3838345,127.03,126.93,38.42]
[1741542945750,7.8744,127.01,126.93,38.42]
[1741542946049,1.37080732,127.05,126.93,38.42]
[1741542946050,0.05979538,126.99,126.97,0.0577529]
[1741542946257,202.616,127.06,126.98,52.3838345]
[1741542946457,7.1142,127.06,126.98,55.9673345]
[1741542947361,0.05360812,127.03,127.01,0.05299885]
[1741542949267,38.45360812,127.03,127.01,0.05299885]
[1741542949453,7.8734,127.02,127.01,0.05299885]
[1741542949854,0.05360812,127.03,127.01,7.92669885]
[1741542950066,0.05360812,127.03,127.01,0.05299885]
[1741542951067,7.8734,127.02,127.01,0.05299885]
[1741542951463,38.4,127.02,126.95,41.9562]
[1741542951869,38.4,127.05,126.95,94.3400345]
[1741542952567,0.05632218,127.01,126.99,0.06056071]
[1741542953770,0.05632218,127.01,127.0,7.8746]
[1741542955571,0.05632218,127.01,126.99,7.93566071]
[1741542956167,0.05632218,127.01,127.0,7.8746]
[1741542956368,0.05632218,127.01,126.99,0.06056071]
[1741542957271,0.05632218,127.01,127.0,7.8746]
[1741542957465,0.05632218,127.01,126.99,0.06056071]
[1741542957873,0.05632218,127.01,126.99,7.93566071]
[1741542958367,0.05632218,127.01,126.99,0.06056071]
[1741542959070,0.05632218,127.01,126.99,7.93536071]
[1741542959261,0.05632218,127.01,126.99,0.06056071]
[1741542960266,0.05632218,127.01,127.0,7.8746]
[1741542960975,0.05632218,127.01,126.99,0.06056071]
[1741542961570,0.05632218,127.01,127.0,7.8746]
[1741542961874,195.6966,127.09,126.99,0.06056071]
[1741542962075,3.6966,127.09,126.99,32.14482223]
[1741542962475,42.0766,127.09,126.99,32.14482223]
[1741542963072,42.0766,127.09,126.98,263.5127]
[1741542963073,3.33e-06,127.05,127.04,7.8721]
[1741542963378,38.38,127.12,127.04,10.8674]
[1741542963572,7.8697,127.08,127.04,18.7393]
[1741542963773,32.14482223,127.11,127.04,10.8674]
[1741542963973,38.38,127.12,127.04,10.8674]
[1741542964272,38.38,127.12,127.06,0.05471236]
[1741542964273,0.04969417,127.09,127.06,0.05471236]
[1741542964780,70.52482223,127.08,127.0,38.38]
[1741542965080,77.62532223,127.08,126.98,259.84]
[1741542965967,0.05188866,127.04,127.02,0.05137639]
[1741542966383,0.05188866,127.04,127.02,7.92437639]
[1741542966578,0.05188866,127.04,127.02,0.05137639]
[1741542966774,192.0,127.11,127.02,0.05137639]
[1741542966981,38.38,127.1,127.0,38.38]
[1741542967384,46.2488,127.1,127.04,7.8717]
[1741542967583,38.38,127.1,127.0,38.38]
[1741542967779,7.1005,127.13,127.02,32.14482223]
[1741542967984,7.1005,127.13,127.07,7.8702]
[1741542968183,0.05987443,127.09,127.04,38.38]
[1741542968385,0.05987443,127.09,127.05,6.9817]
[1741542968585,0.05987443,127.09,127.05,7.04059768]
[1741542969489,0.05987443,127.09,127.05,0.05889768]
[1741542971976,7.8702,127.08,127.05,0.05889768]
[1741542972386,0.05987443,127.09,127.05,0.05889768]
[1741542973182,0.05987443,127.09,127.06,7.8708]
[1741542973381,0.05987443,127.09,127.05,0.05889768]
[1741542973686,0.05987443,127.09,127.08,7.8696]
[1741542974086,0.05987443,127.09,127.06,7.3411]
[1741542975182,38.36,127.14,127.06,7.3411]
[1741542975388,7.0245,127.16,127.06,39.48592223]
[1741542975582,7.0245,127.16,127.06,7.3411]
[1741542975784,32.14482223,127.13,127.06,7.3411]
[1741542975984,38.36,127.12,127.02,42.0443]
[1741542976179,192.0,127.11,126.93,32.38472131]
[1741542976380,42.0112,127.12,126.97,7.3106]
[1741542976381,32.14482223,127.06,126.97,7.3106]
[1741542976587,38.36,127.05,127.01,0.05677723]
[1741542976783,0.05744567,127.03,127.01,0.05677723]
[1741542978688,32.2022679,127.03,127.01,0.05677723]
[1741542979683,38.36,127.02,126.96,32.38472131]
[1741542979890,42.0821,127.02,126.96,32.38472131]
[1741542980485,38.36,127.02,126.96,32.38472131]
[1741542980886,38.36,127.02,126.98,0.0594479]
[1741542980887,0.05242038,127.0,126.98,0.0594479]
[1741542981787,0.05242038,127.0,126.92,263.1254]
[1741542981788,32.19724261,127.0,126.92,259.72]
[1741542981993,7.8781,126.95,126.9,40.26532131]
[1741542982191,38.36,126.96,126.9,32.38472131]
[1741542983091,7.8785,126.94,126.9,40.26532131]
[1741542983287,7.92913492,126.94,126.92,0.05297389]
[1741542983684,0.05063492,126.94,126.92,0.05297389]
[1741542984394,0.05063492,126.94,126.93,7.8789]
[1741542984989,3.492e-05,126.94,126.93,7.8789]
[1741542985987,3.492e-05,126.94,126.93,43.63922223]
[1741542986396,3.5745,127.02,126.93,43.63922223]
[1741542986397,38.36,127.05,126.93,39.70032223]
[1741542986591,38.36,127.05,126.95,32.14482223]
[1741542986998,38.36,127.06,126.97,32.14482223]
[1741542987494,0.0569812,127.03,127.0,0.06001693]
[1741542988594,0.0569812,127.03,127.0,7.93421693]
[1741542988790,0.0569812,127.03,127.0,0.06001693]
[1741542989702,0.0569812,127.03,127.02,7.8734]
[1741542990596,8.12e-05,127.03,127.02,7.8734]
[1741542991599,8.12e-05,127.03,127.0,0.06001693]
[1741542992504,7.8733812,127.03,127.0,0.06001693]
[1741542992707,8.12e-05,127.03,127.0,0.06001693]
[1741542993503,32.14482223,127.02,126.92,38.36]
[1741542993703,38.36,127.01,126.92,38.36]
[1741542993902,42.6406,127.01,126.91,21.93519039]
[1741542994201,32.14482223,126.99,126.91,21.93519039]
[1741542994402,32.14482223,126.99,126.91,18.05479039]
[1741542994603,234.6406,127.01,126.91,18.05479039]
[1741542994604,7.8789,126.94,126.91,10.86899039]
[1741542995004,7.8778,126.95,126.91,10.86899039]
[1741542995203,70.56127832,126.96,126.91,10.92853879]
[1741542995600,78.43847832,126.96,126.91,10.92853879]
[1741542996604,70.56127832,126.96,126.91,10.92853879]
[1741542997407,70.56127832,126.96,126.91,0.0595484]
[1741542998101,78.43877832,126.96,126.91,0.0595484]
[1741542998302,70.56127832,126.96,126.91,0.0595484]
[1741542999514,78.43877832,126.96,126.91,0.0595484]
[1741543000009,11.7575,126.95,126.91,0.0595484]
[1741543000206,3.8796,126.95,126.91,0.0595484]
[1741543001107,7.8815,126.89,126.82,43.2537117]
[1741543001303,38.36,126.88,126.82,43.2537117]
[1741543001504,38.36,126.88,126.84,7.8841]
[1741543001706,7.8815,126.89,126.84,7.8841]
[1741543002006,38.36,126.89,126.82,43.2537117]
[1741543002203,38.36,126.89,126.85,0.05555018]
[1741543002204,0.05788489,126.88,126.85,0.05555018]
[1741543003511,0.05788489,126.88,126.87,7.8827]
[1741543004314,8.489e-05,126.88,126.87,7.8827]
[1741543005502,8.489e-05,126.88,126.87,46.2427]
[1741543007307,8.489e-05,126.88,126.87,7.8827]
[1741543008809,8.489e-05,126.88,126.85,0.05555018]
[1741543009207,32.14490712,126.88,126.85,0.05555018]
[1741543009409,38.36,126.87,126.85,0.05555018]
[1741543009809,38.36,126.87,126.85,7.93905018]
[1741543010308,38.36,126.87,126.85,0.05555018]
[1741543011611,38.36,126.87,126.78,267.9203]
[1741543011808,32.14482223,126.85,126.78,267.9203]
[1741543012819,0.05296311,126.83,126.8,0.05593855]
[1741543013614,0.05296311,126.83,126.8,7.94253855]
[1741543014620,0.05296311,126.83,126.8,0.05593855]
[1741543014823,32.14482223,126.82,126.74,0.97314734]
[1741543015015,36.28412223,126.82,126.74,0.97314734]
[1741543015215,7.8869,126.81,126.74,0.97314734]
[1741543015414,38.36,126.8,126.74,0.97314734]
[1741543015921,38.36,126.8,126.76,7.8891]
[1741543016115,0.05569351,126.78,126.76,7.94516558]
[1741543016924,0.05569351,126.78,126.76,0.05606558]
[1741543017722,0.05569351,126.78,126.77,7.8889]
[1741543017923,0.05569351,126.78,126.76,0.05606558]
[1741543018327,0.05569351,126.78,126.74,0.97314734]
[1741543018618,0.05569351,126.78,126.67,12.1773]
[1741543018825,7.8904,126.75,126.7,7.8928]
[1741543019125,38.38,126.74,126.67,12.1773]
[1741543019324,46.2708,126.74,126.69,7.8938]
[1741543019622,0.05653266,126.72,126.69,7.95087164]
[1741543019818,0.05653266,126.72,126.69,7.95047164]
[1741543020017,0.05653266,126.72,126.69,0.05707164]
[1741543021126,3.266e-05,126.72,126.69,0.05707164]
[1741543021513,3.266e-05,126.72,126.71,7.8926]
[1741543022126,38.38,126.8,126.71,70.52482223]
[1741543022536,195.9646,126.84,126.74,32.14482223]
[1741543022832,38.38,126.85,126.75,42.4712]
[1741543023035,38.38,126.85,126.76,4.0103]
[1741543023532,0.05932997,126.82,126.79,0.05208366]
[1741543023733,2.997e-05,126.82,126.79,0.05208366]
[1741543023927,2.997e-05,126.82,126.79,38.43208366]
[1741543024233,2.997e-05,126.82,126.8,32.14482223]
[1741543024432,2.997e-05,126.82,126.81,7.8864]
[1741543025833,2.997e-05,126.82,126.79,0.05208366]
[1741543026532,32.14482223,126.81,126.79,0.05208366]
[1741543026834,32.14482223,126.81,126.7,260.22]
[1741543027126,196.1391,126.8,126.7,260.22]
[1741543027323,38.36,126.79,126.74,7.8904]
[1741543027520,38.36,126.79,126.7,260.22]
[1741543027720,38.36,126.79,126.71,43.2537117]
[1741543027925,38.36,126.79,126.73,0.05669457]
[1741543028129,0.05803234,126.76,126.73,0.05669457]
[1741543028529,7.8907,126.75,126.73,0.05669457]
[1741543028730,52.51954354,126.76,126.73,0.05669457]
[1741543029127,7.8902,126.75,126.73,0.05669457]
[1741543029321,52.51954354,126.76,126.73,0.05669457]
[1741543029523,7.8908,126.74,126.71,43.2537117]
[1741543029728,38.38,126.73,126.71,43.2537117]
[1741543030027,7.892,126.72,126.71,43.2537117]
[1741543030235,7.892,126.72,126.67,7.895]
[1741543030532,90.8415112,126.73,126.65,7.8963]
[1741543030726,4.02234847,126.71,126.63,43.2537117]
[1741543031128,7.8949,126.68,126.63,51.1512117]
[1741543031333,38.36,126.69,126.63,43.2537117]
[1741543031630,7.8951,126.68,126.63,43.2537117]
[1741543031824,38.36,126.69,126.63,43.2537117]
[1741543032131,0.05163161,126.67,126.64,0.04441925]
[1741543032535,0.05163161,126.67,126.63,43.2537117]
[1741543032738,7.8962,126.66,126.63,43.2537117]
[1741543032931,230.43163161,126.67,126.63,43.2537117]
[1741543033132,38.43163161,126.67,126.63,43.2537117]
[1741543033438,0.05163161,126.67,126.59,41.58741389]
[1741543033636,0.05163161,126.67,126.59,38.38]
[1741543033835,46.2759,126.66,126.61,7.8987]
[1741543034039,0.05313693,126.64,126.58,52.4615112]
[1741543034239,0.05313693,126.64,126.58,90.8415112]
[1741543034538,0.05313693,126.64,126.58,38.38]
[1741543035537,0.05313693,126.64,126.63,7.8976]
[1741543035938,0.05313693,126.64,126.59,52.4615112]
[1741543036339,0.05313693,126.64,126.56,10.82292215]
[1741543036534,259.46563726,126.63,126.56,38.38]
[1741543036939,0.05874718,126.61,126.53,4.3212]
[1741543037239,247.55623726,126.63,126.56,4.2155]
[1741543037539,247.55623726,126.63,126.58,52.4615112]
[1741543037730,247.55623726,126.63,126.56,4.2155]
[1741543038133,247.55623726,126.63,126.59,7.8996]
[1741543038338,247.55623726,126.63,126.56,4.2155]
[1741543038542,0.05749304,126.61,126.58,0.05870247]
[1741543038744,9.304e-05,126.61,126.6,7.8995]
[1741543040243,9.304e-05,126.61,126.59,7.9]
[1741543040444,9.304e-05,126.61,126.58,0.05870247]
[1741543041142,9.304e-05,126.61,126.59,7.8996]
[1741543041542,9.304e-05,126.61,126.58,0.05870247]
[1741543044344,9.304e-05,126.61,126.59,7.9001]
[1741543044540,9.304e-05,126.61,126.58,0.05870247]
[1741543044942,7.89939304,126.61,126.58,0.05870247]
[1741543045244,9.304e-05,126.61,126.58,0.05870247]
[1741543045438,38.4,126.6,126.42,192.0]
[1741543045638,38.4,126.6,126.38,639.36985781]
[1741543045639,52.4615112,126.49,126.44,531.20307264]
[1741543045846,52.4615112,126.49,126.37,52.4615112]
[1741543046047,38.4,126.48,126.43,7.9096]
[1741543046343,38.4,126.48,126.38,38.4]
[1741543046746,0.05697713,126.44,126.42,0.05066861]
[1741543046944,90.91848833,126.44,126.35,133.89089582]
[1741543047341,90.8615112,126.44,126.35,133.89089582]
[1741543047541,52.4615112,126.42,126.35,129.67819582]
[1741543047942,4.0762,126.43,126.35,129.67819582]
[1741543048247,0.05478736,126.4,126.35,129.67819582]
[1741543048644,0.05478736,126.4,126.35,94.44908818]
[1741543048948,38.4,126.46,126.36,52.4615112]
[1741543049149,192.0,126.46,126.37,4.1792]
[1741543049347,38.4,126.49,126.39,52.4615112]
[1741543049546,192.0,126.52,126.42,52.4615112]
[1741543049847,52.4615112,126.57,126.45,52.4615112]
[1741543050048,192.0,126.56,126.46,4.1792]
[1741543050249,6.404e-05,126.48,126.47,46.3276]
[1741543050449,38.42,126.63,126.47,46.3276]
[1741543050450,192.0,126.63,126.47,38.42]
[1741543050752,192.0,126.63,126.53,52.4615112]
[1741543051146,192.0,126.63,126.54,42.5992]
[1741543051641,0.05148226,126.6,126.57,0.06013246]
[1741543051846,8.226e-05,126.6,126.58,39.26]
[1741543052050,39.16,126.69,126.58,39.26]
[1741543052253,91.6215112,126.69,126.58,39.26]
[1741543052455,52.4615112,126.66,126.54,52.4615112]
[1741543052653,52.4615112,126.63,126.51,52.4615112]
[1741543052953,52.4615112,126.63,126.53,7.9036]
[1741543053152,52.4615112,126.6,126.5,260.7]
[1741543053453,52.4615112,126.57,126.44,300.42]
[1741543053653,52.4615112,126.54,126.37,4.2559]
[1741543053854,52.4615112,126.54,126.37,52.4615112]
[1741543053855,52.4615112,126.5,126.37,52.4615112]
[1741543054048,39.74,126.49,126.37,52.4615112]
[1741543054250,43.8953,126.52,126.4,52.4615112]
[1741543054444,192.0,126.53,126.51,7.9051]
[1741543054655,8.0935,126.57,126.46,61.00630356]
[1741543054852,192.0,126.59,126.49,52.4615112]
[1741543055050,39.92,126.61,126.55,7.9022]
[1741543055356,52.4615112,126.59,126.47,4.2417]
[1741543055557,192.0,126.58,126.55,7.902]
[1741543055856,9.231e-05,126.54,126.52,0.05076697]
[1741543056051,40.12,126.63,126.53,40.12]
[1741543056245,40.12,126.63,126.47,260.74]
[1741543056447,52.4615112,126.61,126.47,260.74]
[1741543056754,52.4615112,126.61,126.49,52.4615112]
[1741543056955,192.0,126.62,126.52,52.4615112]
[1741543057253,3.38e-06,126.55,126.54,7.9032]
[1741543057451,40.26,126.59,126.5,3.994]
[1741543057651,40.26,126.59,126.47,317.2906112]
[1741543058057,40.26,126.59,126.5,52.4615112]
[1741543058358,8.818e-05,126.54,126.53,7.9038]
[1741543058751,40.34,126.61,126.51,40.34]
[1741543058955,40.34,126.61,126.52,52.4615112]
[1741543059154,52.4615112,126.59,126.42,192.0]
[1741543059459,232.34,126.58,126.52,7.9044]
[1741543059658,0.0550813,126.52,126.49,0.05853404]
[1741543060059,40.34,126.58,126.47,52.4615112]
[1741543060258,192.0,126.59,126.49,0.05545893]
[1741543060259,0.05270346,126.52,126.49,0.05545893]
[1741543060469,3.46e-06,126.52,126.49,40.31545893]
[1741543060769,40.26,126.59,126.49,1.01969236]
[1741543060956,40.26,126.59,126.5,52.4615112]
[1741543061350,40.26,126.59,126.55,7.9023]
[1741543061860,0.0581832,126.58,126.56,7.95705045]
[1741543062059,40.2,126.57,126.48,52.4615112]
[1741543062361,40.18,126.6,126.51,52.4615112]
[1741543062554,92.6415112,126.6,126.49,4.0533]
[1741543062757,52.4615112,126.57,126.49,4.0533]
[1741543062959,40.22,126.56,126.49,4.0533]
[1741543063159,40.22,126.56,126.47,260.72]
[1741543063359,40.22,126.56,126.51,0.05305452]
[1741543063360,0.0606655,126.54,126.51,0.05305452]
[1741543063760,0.0606655,126.54,126.47,221.53274688]
[1741543063956,0.0606655,126.54,126.5,7.9052]
[1741543064161,0.0606655,126.54,126.47,221.53274688]
[1741543064561,0.0606655,126.54,126.48,52.4615112]
[1741543064761,0.0606655,126.54,126.49,40.12]
[1741543064957,0.0606655,126.54,126.5,0.0599923]
[1741543066562,7.9043,126.53,126.5,0.0599923]
[1741543066763,52.4615112,126.53,126.47,182.35243154]
[1741543067160,4.1203,126.54,126.48,7.9067]
[1741543067361,48.5295,126.55,126.47,182.35243154]
[1741543067771,52.4615112,126.53,126.41,260.78]
[1741543068068,52.4615112,126.5,126.41,260.78]
[1741543068267,39.96,126.49,126.46,0.05716517]
[1741543068457,0.05981604,126.47,126.46,0.05716517]
[1741543068763,44.0183,126.52,126.46,7.96536517]
[1741543068960,0.05959871,126.48,126.46,0.05716517]
[1741543069162,9.871e-05,126.48,126.47,39.86]
[1741543069364,39.84,126.58,126.47,47.8451]
[1741543069561,39.84,126.58,126.49,52.4615112]
[1741543069760,39.84,126.58,126.49,21.12530356]
[1741543070165,39.84,126.58,126.49,281.90530356]
[1741543070364,0.05096706,126.55,126.53,7.9038]
[1741543070566,0.05096706,126.55,126.52,0.05831404]
[1741543070772,39.74,126.54,126.52,0.05831404]
[1741543070959,39.74,126.54,126.47,4.0431]
[1741543071166,47.6437,126.54,126.47,4.0431]
[1741543071368,47.6437,126.54,126.43,308.6883]
[1741543071369,39.74,126.54,126.43,308.6883]
[1741543071568,7.9053,126.51,126.43,308.6883]
[1741543071762,39.7,126.5,126.43,268.9483]
[1741543071967,39.7,126.5,126.43,260.78]
[1741543072163,0.05123243,126.48,126.45,0.05958994]
[1741543072968,0.05123243,126.48,126.43,221.5992823]
[1741543073472,0.05123243,126.48,126.39,8.1437]
[1741543073765,192.0,126.51,126.39,47.7637]
[1741543073971,52.4615112,126.5,126.41,7.9113]
[1741543074172,0.05414386,126.45,126.42,0.05568224]
[1741543074472,0.05414386,126.45,126.39,47.7637]
[1741543074673,0.05414386,126.45,126.42,0.0559235]
[1741543075469,7.96314386,126.45,126.42,0.0559235]
[1741543075772,39.51414386,126.45,126.42,0.0559235]
[1741543076074,39.51414386,126.45,126.37,225.84081586]
[1741543076374,39.46,126.45,126.37,225.84081586]
[1741543076675,192.0,126.48,126.39,52.4615112]
[1741543076869,192.0,126.48,126.38,39.48]
[1741543077067,52.4615112,126.44,126.34,1.0]
[1741543077270,43.8444,126.43,126.34,1.0]
[1741543077576,52.3312,126.43,126.34,1.0]